Workbook

Sheet tek_doseme
B2: TEK & ÇİFT DOĞRULTUDA ÇALIŞAN DÖŞEME DONATI UZUNLUKLARI HESABI (inş. Müh. Gürcan BERBEROĞLU tel: 0532 366 02 04 www.betoncelik.com)
E3: Lsx | G3: Lsy | I3: Lsk | K3: Lx | M3: Ly | O3: Lk | U3: x | W3: y | Y3: x | AA3: y
D4: D1 | E4: =+M12 -> 150 | G4: =+Z28 -> 450 | I4: =MIN(E4,G4) -> 150 | K4: =+M10 -> 180 | M4: =+AB28 -> 477.5 | O4: =MIN(K4,M4) -> 180 | Q4: =IF(MAX(K4,M4)/MIN(K4,M4)>2,"tek doğrultu","çift doğrultu") -> tek doğrultu | U4: 82 | W4: 83 | Y4: =IF(Q4="tek doğrultu",IF(K4=O4,0,1),0) -> 0 | AA4: =IF(Q4="tek doğrultu",IF(M4=O4,0,1),0) -> 1
V5: Dikkat sadece sarı hücrelere data giriniz.
G6: Pas payı = | J6: 2 | L6: cm | O6: Kiriş içine saplama boyu = | V6: 35 | X6: cm
M8: =+D12+M12+W12 -> 210 | O8: cm
D9: =+D12/2 -> 15 | X9: =+W12 -> 30
M10: =+D12/2+M12+W12/2 -> 180 | O10: cm
D12: 30 | F12: cm | M12: 150 | O12: cm | W12: 30 | Y12: cm
Z13: cm
N14: =+V6 -> 35 | P14: =IF(AA4=1,"",+V6) -> 
M15: =IF(AA4=1,Z28/4,Z28/5)+Z15-J6 -> 135.5 | Z15: 25 | AA15: =+Z15/2 -> 12.5 | AC15: cm
F17: hf= | G17: 10 | I17: cm | M17: =+M15+N14 -> 170.5 | O17: =IF(AA4=1,"",+Z28/5+Z15-J6) -> 
G18: 10 | I18: mm
P19: =IF(AA4=1,"",+P37) -> 
M20: L =
D22: =IF(Y4=1,M12/4,M12/5)+D12-J6 -> 58 | F22: L= | G22: =+C23+D22 -> 93 | P22: =IF(AA4=1,"",Z28-Z28/5-Z28/5-2*SQRT(P19^2/2)) ->  | Q22: =Z28+Z15+Z41-2*J6 -> 501 | T22: L= | U22: =+W22+Y23 -> 93 | W22: =IF(Y4=1,M12/4,M12/5)+W12-J6 -> 58
C23: =+V6 -> 35 | Y23: =+V6 -> 35
AJ24: hf
F25: =IF(Y4=1,"",M12/5+D12-J6) -> 58 | U25: =IF(Y4=1,"",M12/5+W12-J6) -> 58
C26: =IF(Y4=1,"",+V6) -> 35 | H26: =IF(Y4=1,"",IF(M12<=Z28,SQRT(2*(G17-2*J6)^2),SQRT(2*(G17-G18/10-2*J6)^2))) -> 8.485281374 | K26: =IF(Y4=1,"",M12-M12/5-M12/5-2*SQRT(H26^2/2)) -> 78 | N26: =IF(Y4=1,"","L=") -> L= | O26: =IF(Y4=1,"",+C26+F25+H26+K26+S26+U25+Y26) -> 280.9705627 | S26: =IF(Y4=1,"",+H26) -> 8.485281374 | Y26: =IF(Y4=1,"",V6) -> 35 | Z26: cm | AB26: cm | AD26: cm
K28: =+D12+M12+W12-2*J6 -> 206 | Z28: 450 | AB28: =+Z15/2+Z28+Z41/2 -> 477.5 | AD28: =+Z15+Z28+Z41 -> 505
P30: =IF(AA4=1,"",+P14+O17+P19+P22+P37+O39+P43) -> 
P33: =IF(AA4=1,"","L =") -> 
M36: =+M41+N43 -> 175.5
P37: =IF(AA4=1,"",IF(Z28<M12,SQRT(2*(G17-2*J6)^2),SQRT(2*(G17-G18/10-2*J6)^2))) -> 
M39: L = | O39: =IF(AA4=1,"",+Z28/5+Z41) ->  | Z39: cm
M41: =IF(AA4=1,Z28/4,Z28/5)+Z41-J6 -> 140.5 | Z41: 30
AA42: =+Z41/2 -> 15 | AC42: cm
N43: =+V6 -> 35 | P43: =IF(AA4=1,"",+V6) -> 
M45: hf
D51: Not: Bir döşemenin uzun kenarın kısa kenara bölümü 2 den büyükse döşeme tek doğrultuda çalışan döşemedir.

Sheet dokuz_doseme
B2: KONUMUNA GÖRE TEK & ÇİFT DOĞRULTUDA ÇALIŞAN DÖŞEME DONATI UZUNLUKLARI HESABI (inş. Müh. Gürcan BERBEROĞLU tel: 0532 366 02 04 www.betoncelik.com)
E3: Lsx | G3: Lsy | I3: Lsk | K3: Lx | M3: Ly | O3: Lk | U3: x | W3: y | Y3: x | AA3: y
D4: D1 | E4: =+M19 -> 560 | G4: =+BL35 -> 480 | I4: =MIN(E4,G4) -> 480 | K4: =+M17 -> 590 | M4: =+BN35 -> 507.5 | O4: =MIN(K4,M4) -> 507.5 | Q4: =IF(MAX(K4,M4)/MIN(K4,M4)>2,"tek doğrultu","çift doğrultu") -> çift doğrultu | U4: 21 | W4: 35 | Y4: =IF(Q4="tek doğrultu",IF(K4=O4,0,1),0) -> 0 | AA4: =IF(Q4="tek doğrultu",IF(M4=O4,0,1),0) -> 0
D5: D2 | E5: =+AF19 -> 460 | G5: =+BL35 -> 480 | I5: =MIN(E5,G5) -> 460 | K5: =+AF17 -> 490 | M5: =+BN35 -> 507.5 | O5: =MIN(K5,M5) -> 490 | Q5: çift doğrultu | U5: 25 | W5: 36 | Y5: =IF(Q5="tek doğrultu",IF(K5=O5,0,1),0) -> 0 | AA5: =IF(Q5="tek doğrultu",IF(M5=O5,0,1),0) -> 0
D6: D3 | E6: =+AY19 -> 350 | G6: =+BL35 -> 480 | I6: 350 | K6: =+AY17 -> 380 | M6: =+BN35 -> 507.5 | O6: 380 | Q6: çift doğrultu | U6: 23 | W6: 38 | Y6: 0 | AA6: 0
D7: D4 | E7: =+M19 -> 560 | G7: =+BL61 -> 365 | I7: 365 | K7: =+M17 -> 590 | M7: =+BN61 -> 395 | O7: 395 | Q7: çift doğrultu | U7: 26 | W7: 42 | Y7: 0 | AA7: 0
D8: D5 | E8: =+AF19 -> 460 | G8: =+BL61 -> 365 | I8: 365 | K8: =+AF17 -> 490 | M8: =+BN61 -> 395 | O8: 395 | Q8: çift doğrultu | U8: 28 | W8: 41 | Y8: 0 | AA8: 0
D9: D6 | E9: =+AY19 -> 350 | G9: =+BL61 -> 365 | I9: 350 | K9: =+AY17 -> 380 | M9: =+BN61 -> 395 | O9: 380 | Q9: çift doğrultu | U9: 30 | W9: 39 | Y9: 0 | AA9: 0
D10: D7 | E10: =+M19 -> 560 | G10: =+BL87 -> 295 | I10: 295 | K10: =+M17 -> 590 | M10: =+BN87 -> 322.5 | O10: 322.5 | Q10: çift doğrultu | U10: 32 | W10: 43 | Y10: 0 | AA10: 0
D11: D8 | E11: =+AF19 -> 460 | G11: =+BL87 -> 295 | I11: =MIN(E11,G11) -> 295 | K11: =+AF17 -> 490 | M11: =+BN87 -> 322.5 | O11: 322.5 | Q11: çift doğrultu | U11: 46 | W11: 44 | Y11: 0 | AA11: 0
D12: D9 | E12: =+AY19 -> 350 | G12: =+BL87 -> 295 | I12: 295 | K12: =+AY17 -> 380 | M12: =+BN87 -> 322.5 | O12: 322.5 | Q12: çift doğrultu | U12: 34 | W12: 45 | Y12: 0 | AA12: 0
AP13: Dikkat sadece sarı hücrelere data giriniz. | BB13: Not: Bir döşemenin uzun kenarın kısa kenara bölümü 2 den büyükse döşeme tek doğrultuda çalışan döşemedir.
G14: Pas payı = | J14: 2 | L14: cm | O14: Kiriş içine saplama boyu = | V14: 35 | X14: cm | AA14: hf = döşeme kalınlığı | AJ14: her döşeme için kullanılacak demir çapı ayrı ayrı verilecektir.
AF15: =+D19+M19+W19+AF19+AP19+AY19+BI19 -> 1490 | AH15: cm
D16: =+D19/2 -> 15 | BJ16: =+BI19/2 -> 15
M17: =+D19/2+M19+W19/2 -> 590 | O17: cm | AF17: =+W19/2+AF19+AP19/2 -> 490 | AH17: cm | AY17: =+AP19/2+AY19+BI19/2 -> 380 | BA17: cm
D19: 30 | F19: cm | M19: 560 | O19: cm | W19: 30 | Y19: cm | AF19: 460 | AH19: cm | AP19: 30 | AR19: cm | AY19: 350 | BA19: cm | BI19: 30 | BK19: cm
N21: =+V14 -> 35 | P21: =IF(AA4=1,"",+V14) -> 35 | AG21: =+V14 -> 35 | AI21: =IF(AA5=1,"",+V14) -> 35 | AZ21: =+V14 -> 35 | BB21: =IF(AA6=1,"",+V14) -> 35
M22: =IF(AA4=1,BL35/4,BL35/5)+BL22-J14 -> 119 | AF22: =IF(AA5=1,BL35/4,BL35/5)+BL22-J14 -> 119 | AY22: =IF(AA6=1,BL35/4,BL35/5)+BL22-J14 -> 119 | BL22: 25 | BM22: =+BL22/2 -> 12.5 | BO22: cm
F24: hf= | G24: 10 | I24: cm | M24: =+M22+N21 -> 154 | O24: =IF(AA4=1,"",+BL35/5+BL22-J14) -> 119 | Y24: hf= | Z24: 10 | AB24: cm | AF24: =+AF22+AG21 -> 154 | AH24: =IF(AA5=1,"",+BL35/5+BL22-J14) -> 119 | AR24: hf= | AS24: 10 | AU24: cm | AY24: =+AY22+AZ21 -> 154 | BA24: =IF(AA6=1,"",BL35/5+BL22-J14) -> 119
G25: 10 | I25: mm | Z25: 10 | AB25: mm | AS25: 10 | AU25: mm
P26: =IF(AA4=1,"",+P44) -> 8.485281374 | AI26: =IF(AA5=1,"",+AI44) -> 7.071067812 | BB26: =IF(AA6=1,"",+BB44) -> 7.071067812
M27: L = | AF27: L = | AY27: L =
D29: =IF(Y4=1,M19/4,M19/5)+D19-J14 -> 140 | F29: L= | G29: =+C30+D29 -> 175 | P29: =IF(AA4=1,"",BL35-BL35/5-BL35/5-2*SQRT(P26^2/2)) -> 276 | Q29: =BL35+BL22+BL48-2*J14 -> 531 | AI29: =IF(AA5=1,"",BL35-BL35/5-BL35/5-2*SQRT(AI26^2/2)) -> 278 | AJ29: =+BL35+BL22+BL48-2*J14 -> 531 | BB29: =IF(AA6=1,"",BL35-BL35/5-BL35/5-2*SQRT(BB26^2/2)) -> 278 | BC29: =+BL22+BL35+BL48-2*J14 -> 531 | BF29: L= | BG29: =+BI29+BK30 -> 133 | BI29: =IF(Y6=1,AY19/4,AY19/5)+BI19-J14 -> 98
C30: =+V14 -> 35 | W30: =IF(Y4=1,M19/4,M19/5)+IF(Y5=1,AF19/4,AF19/5)+W19 -> 234 | AP30: =IF(Y5=1,AF19/4,+AF19/5)+IF(Y6=1,AY19/4,AY19/5)+AP19 -> 192 | BK30: =+V14 -> 35
BV31: hf
F32: =IF(Y4=1,"",M19/5+D19-J14) -> 140 | W32: =IF(Y4=1,"",+M19/5+AF19/4+W19) -> 257 | AP32: =IF(Y6=1,"",+AY19/5+AF19/4+AP19) -> 215 | BG32: =IF(Y6=1,"",AY19/5+BI19-J14) -> 98
C33: =IF(Y4=1,"",+V14) -> 35 | H33: =IF(Y4=1,"",IF(M19<=BL35,SQRT(2*(G24-2*J14)^2),SQRT(2*(G24-G25/10-2*J14)^2))) -> 7.071067812 | K33: =IF(Y4=1,"",M19-M19/5-M19/5-2*SQRT(H33^2/2)) -> 326 | N33: =IF(Y4=1,"","L=") -> L= | O33: =IF(Y4=1,"",+C33+F32+H33+K33+S33+W32) -> 772.1421356 | S33: =IF(Y4=1,"",+H33) -> 7.071067812 | AI33: =IF(AA5=1,"",+AI21+AH24+AI26+AI29+AI44+AH48) -> 663.3921356 | AT33: =IF(Y6=1,"",IF(AY19<=BL35,SQRT(2*(AS24-2*J14)^2),SQRT(2*(AS24-AS25/10-2*J14)^2))) -> 8.485281374 | AX33: =IF(Y6=1,"",AY19-AY19/5-AY19/5-2*SQRT(AT33^2/2)) -> 198 | AZ33: =IF(Y6=1,"","L=") -> L= | BA33: =IF(Y6=1,"",+AP32+AT33+AX33+BE33+BG32+BK33) -> 562.9705627 | BE33: =IF(Y6=1,"",+AT33) -> 8.485281374 | BK33: =IF(Y6=1,"",+V14) -> 35 | BL33: cm | BN33: cm
K35: =+D19+M19+W19-2*J14 -> 616 | AX35: =AP19+AY19+BI19-2*J14 -> 406 | BL35: 480 | BN35: =+BL22/2+BL35+BL48/2 -> 507.5
AI36: =IF(AA5=1,"","L =") -> L =
P37: =IF(AA4=1,"",+P21+O24+P26+P29+P44+O48) -> 664.2205627 | BB37: =IF(AA6=1,"",+BB21+BA24+BB26+BB29+BB44+BA48) -> 663.3921356
W39: =IF(Y5=1,"",AF19/5+M19/4+W19) -> 262 | AP39: =IF(Y5=1,"",AF19/5+AY19/4+AP19) -> 209.5
P40: =IF(AA4=1,"","L =") -> L = | AA40: =IF(Y5=1,"",IF(AF19<=BL35,SQRT(2*(Z24-2*J14)^2),SQRT(2*(Z24-Z25/10-2*J14)^2))) -> 8.485281374 | AD40: =IF(Y5=1,"",AF19-2*AF19/5-2*SQRT(AA40^2/2)) -> 264 | AG40: =IF(Y5=1,"","L=") -> L= | AH40: =IF(Y5=1,"",+W39+AA40+AD40+AL40+AP39) -> 752.4705627 | AL40: =IF(Y5=1,"",+AA40) -> 8.485281374 | BB40: =IF(AA6=1,"","L =") -> L =
AD42: =+W19+AF19+AP19-2*J14 -> 516
P44: =IF(AA4=1,"",IF(BL35<M19,SQRT(2*(G24-2*J14)^2),SQRT(2*(G24-G25/10-2*J14)^2))) -> 8.485281374 | AI44: =IF(AA5=1,"",IF(BL35<AF19,SQRT(2*(Z24-2*J14)^2),SQRT(2*(Z24-Z25/10-2*J14)^2))) -> 7.071067812 | BB44: =IF(AA6=1,"",IF(BL35<AY19,SQRT(2*(AS24-2*J14)^2),SQRT(2*(AS24-AS25/10-2*J14)^2))) -> 7.071067812
BL46: cm
K48: =IF(AA7=1,BL61/4,BL61/5)+IF(AA4=1,BL35/4,BL35/5)+BL48 -> 199 | L48: =IF(AA7=1,"",+BL61/5+BL35/4+BL48) -> 223 | O48: =IF(AA4=1,"",+BL35/5+BL61/4+BL48) -> 217.25 | AD48: =IF(AA8=1,BL61/4,BL61/5)+IF(AA5=1,BL35/4,BL35/5)+BL48 -> 199 | AE48: =IF(AA8=1,"",+BL61/5+BL35/4+BL48) -> 223 | AH48: =IF(AA5=1,"",BL35/5+BL61/4+BL48) -> 217.25 | AW48: =IF(AA6=1,BL35/4,BL35/5)+IF(AA9=1,BL61/4,BL61/5)+BL48 -> 199 | AX48: =IF(AA9=1,"",BL61/5+BL35/4+BL48) -> 223 | BA48: =IF(AA6=1,"",+BL35/5+BL61/4+BL48) -> 217.25 | BL48: 30
F50: hf= | G50: 10 | I50: cm | Y50: hf= | Z50: 10 | AB50: cm | AR50: hf= | AS50: 10 | AU50: cm
G51: 10 | I51: mm | Z51: 10 | AB51: mm | AS51: 10 | AU51: mm
M52: =IF(AA7=1,"",+M70) -> 8.485281374 | AF52: =IF(AA8=1,"",+AF70) -> 8.485281374 | AY52: =IF(AA9=1,"",+AY70) -> 7.071067812
D55: =IF(Y7=1,M19/4,M19/5)+D19-J14 -> 140 | F55: L= | G55: =+C56+D55 -> 175 | M55: =IF(AA7=1,"",+BL61-2*BL61/5-2*SQRT(M52^2/2)) -> 207 | N55: =+BL48+BL61+BL74-2*J14 -> 421 | AF55: =IF(AA8=1,"",+BL61-2*BL61/5-2*SQRT(AF52^2/2)) -> 207 | AG55: =+BL48+BL61+BL74-2*J14 -> 421 | AY55: =IF(AA9=1,"",+BL61-2*BL61/5-2*SQRT(AY52^2/2)) -> 209 | AZ55: =+BL48+BL61+BL74-2*J14 -> 421 | BF55: L= | BG55: =+BI55+BK56 -> 133 | BI55: =IF(Y9=1,AY19/4,AY19/5)+BI19-J14 -> 98
C56: =+V14 -> 35 | W56: =IF(Y7=1,M19/4,+M19/5)+IF(Y8=1,AF19/4,AF19/5)+W19 -> 234 | AP56: =IF(Y8=1,AF19/4,AF19/5)+IF(Y9=1,AY19/4,AY19/5)+AP19 -> 192 | BK56: =+V14 -> 35
F58: =IF(Y7=1,"",+M19/5+D19-J14) -> 140 | W58: =IF(Y7=1,"",+M19/5+AF19/4) -> 227 | AP58: =IF(Y9=1,"",+AY19/5+AF19/4) -> 185 | BG58: =IF(Y9=1,"",+AY19/5+BI19-J14) -> 98
C59: =IF(Y7=1,"",+V14) -> 35 | H59: =IF(Y7=1,"",IF(M19<=BL61,SQRT(2*(G50-2*J14)^2),SQRT(2*(G50-G51/10-2*J14)^2))) -> 7.071067812 | K59: =IF(Y7=1,"",M19-M19/5-M19/5-2*SQRT(H59^2/2)) -> 326 | O59: =IF(Y7=1,"","L=") -> L= | P59: =IF(Y7=1,"",+C59+F58+H59+K59+S59+W58) -> 742.1421356 | S59: =IF(Y7=1,"",+H59) -> 7.071067812 | AT59: =IF(Y9=1,"",IF(AY19<=BL61,SQRT(2*(AS50-2*J14)^2),SQRT(2*(AS50-AS51/10-2*J14)^2))) -> 8.485281374 | AX59: =IF(Y9=1,"",AY19-AY19/5-AY19/5-2*SQRT(AT59^2/2)) -> 198 | BA59: =IF(Y9=1,"","L=") -> L= | BB59: =IF(Y9=1,"",+AP58+AT59+AX59+BE59+BG58+BK59) -> 532.9705627 | BE59: =IF(Y9=1,"",+AT59) -> 8.485281374 | BK59: =IF(Y9=1,"",+V14) -> 35 | BL59: cm | BN59: cm | BP59: cm
AF60: =IF(AA8=1,"",+AE48+AF52+AF55+AF70+AE74) -> 623.7205627
K61: =+D19+M19+W19-2*J14 -> 616 | AX61: =AP19+AY19+BI19-2*J14 -> 406 | BL61: 365 | BN61: =+BL48/2+BL61+BL74/2 -> 395 | BP61: =+BL22+BL35+BL48+BL61+BL74+BL87+BL100 -> 1250
M63: =IF(AA7=1,"",+L48+M52+M55+M70+L74) -> 623.7205627 | AF63: =IF(AA8=1,"","L =") -> L = | AY63: =IF(AA9=1,"",+AX48+AY52+AY55+AY70+AX74) -> 622.8921356
W65: =IF(Y8=1,"",AF19/5+M19/4+W19) -> 262 | AP65: =IF(Y8=1,"",AF19/5+AY19/4+AP19) -> 209.5
M66: =IF(AA7=1,"","L =") -> L = | AA66: =IF(Y8=1,"",IF(AF19<=BL61,SQRT(2*(Z50-2*J14)^2),SQRT(2*(Z50-Z51/10-2*J14)^2))) -> 7.071067812 | AD66: =IF(Y8=1,"",AF19-2*AF19/5-2*SQRT(AA66^2/2)) -> 266 | AH66: =IF(Y8=1,"","L=") -> L= | AI66: =IF(Y8=1,"",+W65+AA66+AD66+AL66+AP65) -> 751.6421356 | AL66: =IF(Y8=1,"",+AA66) -> 7.071067812 | AY66: =IF(AA9=1,"","L =") -> L =
AD68: =+W19+AF19+AP19-2*J14 -> 516
M70: =IF(AA7=1,"",IF(BL61<M19,SQRT(2*(G50-2*J14)^2),SQRT(2*(G50-G51/10-2*J14)^2))) -> 8.485281374 | AF70: =IF(AA8=1,"",IF(BL61<AF19,SQRT(2*(Z50-2*J14)^2),SQRT(2*(Z50-Z51/10-2*J14)^2))) -> 8.485281374 | AY70: =IF(AA9=1,"",IF(BL61<AY19,SQRT(2*(AS50-2*J14)^2),SQRT(2*(AS50-AS51/10-2*J14)^2))) -> 7.071067812
BL72: cm
K74: =IF(AA10=1,BL87/4,BL87/5)+IF(AA7=1,BL61/4,BL61/5)+BL74 -> 162 | L74: =IF(AA7=1,"",BL61/5+BL87/4+BL74) -> 176.75 | O74: =IF(AA10=1,"",BL87/5+BL61/4+BL74) -> 180.25 | AD74: =IF(AA11=1,BL87/4,BL87/5)+IF(AA8=1,BL61/4,BL61/5)+BL74 -> 162 | AE74: =IF(AA8=1,"",BL61/5+BL87/4+BL74) -> 176.75 | AH74: =IF(AA11=1,"",+BL87/5+BL61/4+BL74) -> 180.25 | AW74: =IF(AA12=1,BL87/4,BL87/5)+IF(AA9=1,BL61/4,BL61/5)+BL74 -> 162 | AX74: =IF(AA9=1,"",BL61/5+BL87/4+BL74) -> 176.75 | BA74: =IF(AA12=1,"",BL87/5+BL61/4+BL74) -> 180.25 | BL74: 30
F76: hf= | G76: 10 | I76: cm | Y76: hf= | Z76: 10 | AB76: cm | AR76: hf= | AS76: 10 | AU76: cm
G77: 10 | I77: mm | Z77: 10 | AB77: mm | AS77: 10 | AU77: mm
P78: =IF(AA10=1,"",+P96) -> 8.485281374 | AI78: =IF(AA11=1,"",+AI96) -> 8.485281374 | BB78: =IF(AA12=1,"",+BB96) -> 8.485281374
D81: =IF(Y10=1,M19/4,M19/5)+D19-J14 -> 140 | F81: L= | G81: =+C82+D81 -> 175 | P81: =IF(AA10=1,"",BL87-BL87/5-BL87/5-2*SQRT(P78^2/2)) -> 165 | Q81: =+BL74+BL87+BL100-2*J14 -> 346 | AI81: =IF(AA11=1,"",BL87-BL87/5-BL87/5-2*SQRT(AI78^2/2)) -> 165 | AJ81: =+BL74+BL87+BL100-2*J14 -> 346 | BB81: =IF(AA12=1,"",BL87-BL87/5-BL87/5-2*SQRT(BB78^2/2)) -> 165 | BC81: =+BL74+BL87+BL100-2*J14 -> 346 | BF81: L= | BG81: =+BI81+BK82 -> 133 | BI81: =IF(Y12=1,AY19/4,AY19/5)+BI19-J14 -> 98
C82: =+V14 -> 35 | W82: =IF(Y10=1,M19/4,M19/5)+IF(Y11=1,AF19/4,AF19/5)+W19 -> 234 | AP82: =IF(Y11=1,AF19/4,AF19/5)+IF(Y12=1,AY19/4,AY19/5)+AP19 -> 192 | BK82: =+V14 -> 35
F84: =IF(Y10=1,"",+M19/5+D19-J14) -> 140 | W84: =IF(Y10=1,"",+M19/5+AF19/4) -> 227 | AP84: =IF(Y12=1,"",+AY19/5+AF19/4) -> 185 | BG84: =IF(Y12=1,"",+AY19/5+BI19-J14) -> 98
C85: =IF(Y10=1,"",+V14) -> 35 | H85: =IF(Y10=1,"",IF(M19<=BL87,SQRT(2*(G76-2*J14)^2),SQRT(2*(G76-G77/10-2*J14)^2))) -> 7.071067812 | K85: =IF(Y10=1,"",M19-M19/5-M19/5-2*SQRT(H85^2/2)) -> 326 | N85: =IF(Y10=1,"","L=") -> L= | O85: =IF(Y10=1,"",+C85+F84+H85+K85+S85+W84) -> 742.1421356 | S85: =IF(Y10=1,"",+H85) -> 7.071067812 | AI85: =IF(AA11=1,"",+AH74+AI78+AI81+AI96+AH98+AI102) -> 479.2205627 | AT85: =IF(Y12=1,"",IF(AY19<=BL87,SQRT(2*(AS76-2*J14)^2),SQRT(2*(AS76-AS77/10-2*J14)^2))) -> 7.071067812 | AW85: =IF(Y12=1,"",AY19-AY19/5-AY19/5-2*SQRT(AT85^2/2)) -> 200 | AZ85: =IF(Y12=1,"","L=") -> L= | BA85: =IF(Y12=1,"",+AP84+AT85+AW85+BE85+BG84+BK85) -> 532.1421356 | BE85: =IF(Y12=1,"",+AT85) -> 7.071067812 | BK85: =IF(Y12=1,"",+V14) -> 35 | BL85: cm | BN85: cm
K87: =+D19+M19+W19-2*J14 -> 616 | AW87: =+AP19+AY19+BI19-2*J14 -> 406 | BL87: 295 | BN87: =+BL74/2+BL87+BL100/2 -> 322.5
AI88: =IF(AA11=1,"","L =") -> L =
P89: =IF(AA10=1,"",+O74+P78+P81+P96+O98+P102) -> 479.2205627 | BB89: =IF(AA12=1,"",+BA74+BB78+BB81+BB96+BA98+BB102) -> 479.2205627
W91: =IF(Y11=1,"",AF19/5+M19/4+W19) -> 262 | AP91: =IF(Y11=1,"",AF19/5+AY19/4+AP19) -> 209.5
P92: =IF(AA10=1,"","L =") -> L = | AA92: =IF(Y11=1,"",IF(AF19<=BL87,SQRT(2*(Z76-2*J14)^2),SQRT(2*(Z76-Z77/10-2*J14)^2))) -> 7.071067812 | AD92: =IF(Y11=1,"",AF19-2*AF19/5-2*SQRT(AA92^2/2)) -> 266 | AG92: =IF(Y11=1,"","L=") -> L= | AH92: =IF(Y11=1,"",+W91+AA92+AD92+AL92+AP91) -> 751.6421356 | AL92: =IF(Y11=1,"",+AA92) -> 7.071067812 | BB92: =IF(AA12=1,"","L =") -> L =
AD94: =+W19+AF19+AP19-2*J14 -> 516
M95: =+M100+N102 -> 117 | AF95: =+AF100+AG102 -> 117 | AY95: =+AY100+AZ102 -> 117
P96: =IF(AA10=1,"",IF(BL87<AF19,SQRT(2*(G76-2*J14)^2),SQRT(2*(G76-G77/10-2*J14)^2))) -> 8.485281374 | AI96: =IF(AA11=1,"",IF(BL87<AF19,SQRT(2*(Z76-2*J14)^2),SQRT(2*(Z76-Z77/10-2*J14)^2))) -> 8.485281374 | BB96: =IF(AA12=1,"",IF(BL87<AY19,SQRT(2*(AS76-2*J14)^2),SQRT(2*(AS76-AS77/10-2*J14)^2))) -> 8.485281374
M98: L= | O98: =IF(AA10=1,"",+BL87/5+BL100-J14) -> 82 | AF98: L= | AH98: =IF(AA11=1,"",+BL87/5+BL100-J14) -> 82 | AY98: L= | BA98: =IF(AA12=1,"",+BL87/5+BL100-J14) -> 82 | BL98: cm
M100: =IF(AA10=1,BL87/4,BL87/5)+BL100-J14 -> 82 | AF100: =IF(AA11=1,BL87/4,BL87/5)+BL100-J14 -> 82 | AY100: =IF(AA12=1,BL87/4,BL87/5)+BL100-J14 -> 82 | BL100: 25
BM101: =+BL100/2 -> 12.5 | BO101: cm
N102: =+V14 -> 35 | P102: =IF(AA10=1,"",+V14) -> 35 | AG102: =+V14 -> 35 | AI102: =IF(AA11=1,"",+V14) -> 35 | AZ102: =+V14 -> 35 | BB102: =IF(AA12=1,"",+V14) -> 35
AD104: hf

Sheet sematik_yerlesim
B2: TEK VE ÇİFT DOĞRULTUDA ÇALIŞAN DÖŞEME ŞEMATİK DEMİR YERLEŞİMİ (inş. Müh. Gürcan BERBEROĞLU tel: 0532 366 02 04 www.betoncelik.com)
C4: Not: Bir döşemenin uzun kenarın kısa kenara bölümü 2 den büyükse döşeme tek doğrultuda çalışan döşemedir.
F7: ÇİFT DOĞRULTUDA ÇALIŞAN DÖŞEME DONATI YERLEŞİMİ
J9: Lx1 | T9: Lx2
C19: Ly1
C30: Ly2
F35: TEK DOĞRULTUDA ÇALIŞAN DÖŞEME DONATI YERLEŞİMİ
K37: Lx1 | T37: Lx2
C52: Ly1
C67: Ly2
